{"text_format":"1","workbook":"xlsx","n_sheets":1,"sheets":["Feuille1"],"not_rendered":{"charts":0,"images":2,"macros":0,"external_links":0,"defined_names":0,"comments":0,"pivot_tables":0},"unopened":[],"bounds":{"document_bytes":16777216,"sheet_cells":100000,"rows_first":2000,"rows_last":500,"rows_between":2000,"halvings":0,"cell_chars":16384,"cell_head_chars":4096},"cells_cut":0,"cells_raw":0,"read":"whole","date_system":"1900"}

{"sheet":"Feuille1","index":0,"n_rows":80,"n_cols":8,"rows_kept":80,"cut":false,"hidden":false,"merged":[[79,0,79,5],[74,2,74,3],[75,2,75,3],[76,2,76,3],[77,2,77,3],[78,2,78,3],[78,0,78,1],[75,0,75,1],[76,0,76,1],[77,0,77,1],[66,2,66,3],[67,2,67,3],[68,2,68,3],[73,0,73,1],[64,2,64,3],[65,2,65,3],[68,0,68,1],[69,0,69,1],[70,0,70,1],[71,0,71,1],[74,0,74,1],[69,2,69,3],[70,2,70,3],[71,2,71,3],[72,2,72,3],[73,2,73,3],[72,0,72,1],[64,0,64,1],[65,0,65,1],[66,0,66,1],[67,0,67,1],[58,0,58,1],[59,0,59,1],[60,0,60,1],[61,0,61,1],[62,0,62,1],[63,0,63,1],[54,2,54,3],[55,2,55,3],[56,2,56,3],[57,2,57,3],[58,2,58,3],[59,2,59,3],[60,2,60,3],[61,2,61,3],[62,2,62,3],[63,2,63,3],[12,0,12,7],[13,0,13,7],[15,0,15,7],[23,0,23,7],[24,0,24,7],[17,0,17,7],[18,0,18,7],[54,0,54,1],[55,0,55,1],[56,0,56,1],[57,0,57,1],[51,0,51,7],[52,0,52,7],[53,0,53,7],[26,7,31,7],[20,4,20,7],[21,4,21,7],[39,0,39,7],[40,0,40,7],[36,4,36,7],[26,1,31,1],[26,3,31,3],[26,5,31,5],[26,6,31,6],[32,0,32,7],[42,0,42,1],[43,0,43,1],[44,0,45,1],[47,0,47,1],[47,3,47,4],[42,2,47,2],[42,3,42,4],[43,3,43,4],[44,3,45,4],[46,0,46,1],[46,3,46,4],[48,0,48,7],[0,0,0,7],[1,0,1,7],[2,0,2,7],[37,4,37,7],[41,3,41,4],[3,0,3,7],[5,0,5,1],[7,0,7,1],[9,0,9,7],[10,0,10,7],[11,0,11,7],[42,5,47,5],[42,6,47,6],[42,7,47,7],[41,0,41,1]]}
["CHAMPIONNAT INTERDEPARTEMENTAL POUSSINES GRS"]
["RESERVATIONS PANIER REPAS"]
["DIMANCHE 7 avril 2019"]
["Adresse du gymnase :  Centre Intercommunal de Rencontres Rue de Vesoul - Zone d'Activités, 70190 Voray-sur-l'Ognon"]
[]
["Ouverture du Gymnase : ",null,"9h00"]
["Pause repas : ",null,"12h30"]
["Fin de la compétition : ",null,"18h00"]
[]
["La Cita de Besançon et la voraysienne de Voray sur l'ognon sont heureux de vous accueillr au championnat interdépartemental poussines GRS du 7 avril 2019."]
["La buvette sera ouverte toute la journée de compétition. Vous et vos enfants aurez la possibilité de pour restaurer sur place."]
[]
["Midi : Réservation de panier repas ci-dessous ou directement à la buvette (sandwich jambon, fromage ou hot-dog)"]
["Soir : directement à la buvette (sandwich jambon, fromage)"]
[]
["A tout moment : Café, thé, chocolats, bière (adultes uniquement) sodas, eau, gaufres et confiseries"]
[]
["Les panier repas sont à réserver en retournant ce document rempli à l'adresse mail suivante avant le jeudi 4 avril au soir : cita.grs.besancon.competition@gmail.com"]
["Le paiement des panier repas se fera directement à la buvette."]
[]
["NOM",null,"Prénom",null,"Club"]
[]
[]
["RESERVATION PANIER REPAS (JUGES*, BENEVOLES, GYMNASTES, SPECTATEURS)"]
["DIMANCHE MIDI"]
["Panier A","Quantité","Panier B","Quantité","Panier C","Quantité","Prix/panier ","TOTAL"]
["sandwich au jambon",null,"sandwich au fromage",null,"Hot-dog",null,6,{"$f":"(B27*G27)+(D27*G27)+(F27*G27)","v":0}]
["Bouteille d'eau",null,"Bouteille d'eau",null,"Bouteille d'eau"]
["Paquet de chips",null,"Paquet de chips",null,"Paquet de chips"]
["1 babibel",null,"1 babibel",null,"1 babibel"]
["1 compote",null,"1 compote",null,"1 compote"]
["1 Gâteau",null,"1 Gâteau",null,"1 Gâteau"]
["* Réservation obligatoire pour les juges mais panier repas OFFERT par la CITA"]
[]
[]
[]
["NOM",null,"Prénom",null,"Club"]
[]
[]
["RESERVATION PANIER REPAS (JUGES*, BENEVOLES UNIQUEMENT)"]
["DIMANCHE MIDI"]
["Panier D",null,"Quantité","Panier E",null,"Quantité","Prix/panier ","TOTAL"]
["Salade repas Thon",null,null,"Salade repas Poulet",null,null,6,{"$f":"(C43*G43)+(F43*G43)","v":0}]
["Bouteille d'eau",null,null,"Bouteille d'eau"]
["1 yahourt à boire",null,null,"1 yahourt à boire"]
[]
["1 fruit",null,null,"1 fruit"]
["1 Gâteau",null,null,"1 Gâteau"]
["* Réservation obligatoire pour les juges mais panier repas OFFERT par la CITA"]
[]
[]
["RESERVATION ASSOCIATION"]
["Nom de l'association : "]
["PANIER REPAS MIDI"]
["NOM",null,"Panier choisi (A, B, C, D ou E)",null,"Quantité","Prix","Total"]
[null,null,null,null,null,6,{"$f":"E56*F56","v":0}]
[null,null,null,null,null,6,{"$f":"E57*F57","v":0}]
[null,null,null,null,null,6,0]
[null,null,null,null,null,6,0]
[null,null,null,null,null,6,0]
[null,null,null,null,null,6,0]
[null,null,null,null,null,6,0]
[null,null,null,null,null,6,0]
[null,null,null,null,null,6,0]
[null,null,null,null,null,6,0]
[null,null,null,null,null,6,0]
[null,null,null,null,null,6,0]
[null,null,null,null,null,6,0]
[null,null,null,null,null,6,0]
[null,null,null,null,null,6,0]
[null,null,null,null,null,6,0]
[null,null,null,null,null,6,0]
[null,null,null,null,null,6,0]
[null,null,null,null,null,6,0]
[null,null,null,null,null,6,0]
[null,null,null,null,null,6,0]
[null,null,null,null,null,6,0]
[null,null,null,null,null,6,0]
[null,null,null,null,null,6,0]
["TOTAL",null,null,null,null,null,{"$f":"SUM(G56:G79)","v":0}]